bitfinex/quotes_BTCUSD_20220731
["timestamp","ask_amount","ask_price","bid_price","bid_amount"]
[1659264292458,0.40725733,23774.0,23770.0,0.603304]
[1659264292692,0.40725733,23774.0,23771.0,0.303304]
[1659264292919,0.40725733,23774.0,23772.0,0.31406153]
[1659264293166,0.40725733,23774.0,23773.0,0.453304]
[1659264293412,0.41125733,23774.0,23773.0,0.453304]
[1659264293875,0.004,23774.0,23773.0,0.453304]
[1659264294095,0.004,23774.0,23773.0,0.45395024]
[1659264294321,0.004,23774.0,23773.0,0.75395024]
[1659264294546,0.52559,23776.0,23773.0,0.75395024]
[1659264294831,0.93284733,23776.0,23775.0,0.15]
[1659264295055,0.93284733,23776.0,23774.0,0.01011126]
[1659264295266,0.94484733,23776.0,23773.0,0.30064624]
[1659264295486,0.94484733,23776.0,23774.0,0.303304]
[1659264295731,0.94484733,23776.0,23773.0,0.3]
[1659264296625,0.93284733,23776.0,23773.0,0.3]
[1659264297382,0.97684733,23776.0,23772.0,0.35]
[1659264297614,0.97684733,23776.0,23773.0,0.303304]
[1659264297615,0.40725733,23775.0,23773.0,0.303304]
[1659264298039,0.43721021,23775.0,23772.0,0.05]
[1659264298255,0.40725733,23774.0,23773.0,0.303304]
[1659264300310,0.40725733,23774.0,23772.0,0.05]
[1659264300537,0.40725733,23774.0,23773.0,0.05]
[1659264301012,0.40725733,23774.0,23772.0,0.1]
[1659264301285,0.76765288,23773.0,23768.0,0.33159]
[1659264301508,0.40725733,23772.0,23769.0,0.303304]
[1659264301735,0.40725733,23772.0,23771.0,0.05]
[1659264301956,0.40725733,23772.0,23769.0,0.05]
[1659264302176,1.38098565,23772.0,23768.0,0.3]
[1659264302639,0.40725733,23772.0,23768.0,0.35]
[1659264303092,0.40725733,23772.0,23768.0,0.3]
[1659264303320,0.41725733,23772.0,23768.0,0.3]
[1659264304494,0.40725733,23771.0,23768.0,0.4]
[1659264304706,0.66149913,23771.0,23768.0,0.1]
[1659264304940,0.40725733,23770.0,23768.0,0.1]
[1659264305158,0.40725733,23770.0,23769.0,0.303304]
[1659264305381,0.40725733,23770.0,23768.0,0.1]
[1659264305624,0.40725733,23770.0,23769.0,0.303304]
[1659264305849,0.40725733,23770.0,23768.0,0.1]
[1659264306071,0.40725733,23770.0,23769.0,0.303304]
[1659264306509,0.40725733,23770.0,23769.0,0.31490658]
[1659264306752,0.40725733,23770.0,23769.0,0.61490658]
[1659264307879,0.40725733,23770.0,23769.0,0.31490658]
[1659264308105,0.40725733,23770.0,23769.0,0.61490658]
[1659264308574,0.40725733,23775.0,23769.0,0.61490658]
[1659264308753,0.40725733,23775.0,23769.0,0.31160258]
[1659264309270,0.45625733,23775.0,23769.0,0.31160258]
[1659264309499,0.00624898,23772.0,23769.0,0.05]
[1659264309730,0.43721021,23771.0,23769.0,0.05]
[1659264309960,0.40725733,23770.0,23769.0,0.303304]
[1659264310192,0.40725733,23770.0,23769.0,0.31669257]
[1659264310417,0.40725733,23770.0,23769.0,0.303304]
[1659264311323,0.40725733,23770.0,23768.0,0.1]
[1659264311534,0.40725733,23770.0,23769.0,0.31341526]
[1659264311756,0.40725733,23770.0,23769.0,0.303304]
[1659264311981,0.43721021,23770.0,23769.0,0.303304]
[1659264312447,0.40725733,23770.0,23769.0,0.303304]
[1659264312673,0.40725733,23770.0,23769.0,0.31341526]
[1659264312932,0.40725733,23770.0,23769.0,0.303304]
[1659264313597,0.40725733,23770.0,23769.0,0.31499161]
[1659264314276,0.40725733,23770.0,23769.0,0.61499161]
[1659264314722,0.41350631,23770.0,23769.0,0.61499161]
[1659264314952,0.41350631,23770.0,23769.0,0.3]
[1659264315167,0.41350631,23770.0,23769.0,0.603304]
[1659264315615,0.41350631,23770.0,23769.0,0.303304]
[1659264316063,0.41350631,23770.0,23768.0,0.16168767]
[1659264316306,0.41350631,23770.0,23769.0,0.303304]
[1659264316533,0.41350631,23770.0,23768.0,0.11168767]
[1659264316941,0.41350631,23770.0,23769.0,0.303304]
[1659264317161,0.44345919,23770.0,23769.0,0.303304]
[1659264317378,0.41350631,23770.0,23769.0,0.303304]
[1659264318065,0.41350631,23770.0,23768.0,0.11322253]
[1659264318294,0.41350631,23770.0,23769.0,0.353304]
[1659264318509,0.41350631,23770.0,23769.0,0.303304]
[1659264319451,0.00624898,23770.0,23769.0,0.953304]
[1659264319893,0.00624898,23770.0,23769.0,0.653304]
[1659264320112,0.00624898,23770.0,23769.0,0.353304]
[1659264320808,0.00624898,23770.0,23769.0,0.653304]
[1659264321050,0.00624898,23770.0,23769.0,0.353304]
[1659264321489,0.00624898,23770.0,23769.0,0.36357082]
[1659264324679,0.00624898,23770.0,23769.0,0.303304]
[1659264330105,0.00616305,23770.0,23769.0,0.303304]
[1659264331030,0.00616305,23770.0,23768.0,0.15]
[1659264331221,0.03611593,23770.0,23768.0,0.453304]
[1659264331451,0.03611593,23770.0,23768.0,0.15]
[1659264331691,0.41342038,23770.0,23768.0,0.453304]
[1659264331932,0.41342038,23770.0,23769.0,0.05]
[1659264332153,0.41342038,23770.0,23769.0,0.353304]
[1659264332426,0.41342038,23770.0,23769.0,0.05]
[1659264332647,0.41342038,23770.0,23769.0,0.303304]
[1659264332884,0.40725733,23774.0,23769.0,0.303304]
[1659264333130,0.40725733,23774.0,23768.0,0.16307473]
[1659264334723,0.40725733,23774.0,23768.0,0.15]
[1659264335628,0.40725733,23774.0,23768.0,0.45]
[1659264337018,0.40725733,23774.0,23769.0,0.303304]
[1659264337241,0.40725733,23774.0,23768.0,0.15]
[1659264337242,0.45225733,23774.0,23768.0,0.15]
[1659264337457,0.40725733,23773.0,23768.0,0.45]
[1659264337697,0.40725733,23773.0,23769.0,0.303304]
[1659264337934,0.40725733,23773.0,23768.0,0.45]
[1659264338160,0.40725733,23773.0,23769.0,0.303304]
[1659264338386,0.40725733,23773.0,23770.0,0.01307448]
[1659264338615,0.40725733,23773.0,23771.0,0.303304]
[1659264338616,0.02995288,23772.0,23771.0,0.303304]
[1659264338800,0.40725733,23772.0,23771.0,0.303304]
[1659264339073,0.40725733,23772.0,23769.0,0.3]
[1659264339285,0.40725733,23772.0,23770.0,0.303304]
[1659264339535,0.43425733,23772.0,23771.0,0.05]
[1659264339749,0.4396483,23772.0,23770.0,0.05]
[1659264340038,0.46421021,23772.0,23771.0,0.303304]
[1659264340257,0.40725733,23772.0,23769.0,0.3]
[1659264340488,0.40725733,23772.0,23770.0,0.303304]
[1659264340709,0.40725733,23772.0,23771.0,0.353304]
[1659264340926,0.43721021,23772.0,23771.0,0.05]
[1659264341360,0.46421021,23772.0,23769.0,0.3]
[1659264341612,0.46421021,23772.0,23770.0,0.01011126]
[1659264341853,0.43425733,23772.0,23770.0,0.05296322]
[1659264342079,0.43425733,23772.0,23771.0,0.05]
[1659264343166,0.43425733,23772.0,23769.0,0.05]
[1659264343381,0.43425733,23772.0,23770.0,0.01025942]
[1659264343382,0.42825733,23772.0,23770.0,0.01025942]
[1659264343627,0.42825733,23772.0,23768.0,0.1]
[1659264343833,0.42825733,23772.0,23769.0,0.303304]
[1659264344249,0.42825733,23772.0,23769.0,0.353304]
[1659264344701,0.42825733,23772.0,23769.0,0.36356343]
[1659264344702,0.40725733,23772.0,23769.0,0.36356343]
[1659264344895,0.43488286,23772.0,23771.0,0.00572372]
[1659264345809,0.45588286,23772.0,23771.0,0.00572372]
[1659264346468,0.42825733,23772.0,23769.0,0.06025943]
[1659264346686,0.42974275,23772.0,23769.0,0.01025943]
[1659264346936,0.42974275,23772.0,23770.0,0.05]
[1659264347158,0.40874275,23772.0,23768.0,0.15]
[1659264347403,0.42974275,23772.0,23768.0,0.15]
[1659264348349,0.42974275,23772.0,23769.0,0.303304]
[1659264348581,0.42974275,23772.0,23769.0,0.01011126]
[1659264348835,0.40874275,23772.0,23771.0,0.05]
[1659264349033,0.40874275,23772.0,23769.0,0.06011126]
[1659264349518,0.42374275,23772.0,23769.0,0.06011126]
[1659264349739,0.42374275,23772.0,23769.0,0.01011126]
[1659264350671,0.40874275,23772.0,23769.0,0.06011126]
[1659264350883,0.40874275,23772.0,23769.0,0.01011126]
[1659264351428,0.42374275,23772.0,23769.0,0.01011126]
[1659264351656,0.42374275,23772.0,23769.0,0.06189068]
[1659264351861,0.42374275,23772.0,23769.0,0.01189068]
[1659264352030,0.42374275,23772.0,23769.0,0.06189068]
[1659264352845,0.40874275,23772.0,23769.0,0.06189068]
[1659264353760,0.42974275,23772.0,23769.0,0.06189068]
[1659264354225,0.42974275,23772.0,23769.0,0.01189068]
[1659264354690,0.42974275,23772.0,23771.0,0.05]
[1659264354913,0.42974275,23772.0,23769.0,0.06189068]
[1659264355135,0.40874275,23772.0,23769.0,0.06189068]
[1659264355438,0.40725733,23771.0,23769.0,0.05]
[1659264355904,0.40725733,23771.0,23769.0,0.01020023]
[1659264356121,0.40725733,23771.0,23769.0,0.31350423]
[1659264356568,0.40716323,23771.0,23769.0,0.36350423]
[1659264357439,0.43316323,23771.0,23769.0,0.36350423]
[1659264358110,0.43316323,23771.0,23770.0,0.05]
[1659264358367,0.43316323,23771.0,23769.0,0.06020023]
[1659264358601,0.43316323,23771.0,23770.0,0.05]
[1659264358765,0.40716323,23771.0,23769.0,0.06020023]
[1659264358937,0.40716323,23771.0,23769.0,0.36350423]
[1659264359364,0.43816323,23771.0,23769.0,0.36350423]
[1659264359943,0.43816323,23771.0,23769.0,0.31350423]
[1659264360168,0.43816323,23771.0,23769.0,0.06020023]
[1659264360382,0.43816323,23771.0,23770.0,0.05]
[1659264360606,0.00148542,23770.0,23769.0,0.11020023]
[1659264360806,0.00148542,23770.0,23769.0,0.41350423]
[1659264361478,0.03648542,23770.0,23769.0,0.11020023]
[1659264361783,0.03648542,23770.0,23769.0,0.41350423]
[1659264362003,0.03648542,23770.0,23769.0,0.41341526]
[1659264362259,0.03648542,23770.0,23769.0,0.403304]
[1659264362719,0.03648542,23770.0,23769.0,0.1]
[1659264362972,0.03648542,23770.0,23769.0,0.403304]
[1659264364263,0.03648542,23770.0,23769.0,0.1]
[1659264364468,0.03648542,23770.0,23769.0,0.403304]
[1659264364686,0.00148542,23770.0,23769.0,0.403304]
[1659264365052,0.00687639,23770.0,23769.0,0.403304]
[1659264365276,0.00148542,23770.0,23769.0,0.403304]
[1659264366521,0.00148542,23770.0,23769.0,0.1]
[1659264366749,0.00148542,23770.0,23769.0,0.403304]
[1659264367422,0.00148542,23770.0,23769.0,0.703304]
[1659264369476,0.00148542,23770.0,23769.0,0.403304]
[1659264369890,0.00148542,23770.0,23769.0,0.1]
[1659264370116,0.00148542,23770.0,23769.0,0.403304]
[1659264370861,0.00148542,23770.0,23769.0,0.703304]
[1659264371974,0.00148542,23770.0,23769.0,0.403304]
[1659264373197,0.00148542,23770.0,23769.0,0.703304]
[1659264374137,0.00148542,23770.0,23769.0,0.4]
[1659264374428,0.00148542,23770.0,23769.0,0.703304]
[1659264375079,0.00148542,23770.0,23769.0,0.4]
[1659264375287,0.00148542,23770.0,23769.0,0.703304]
[1659264375706,0.00148542,23770.0,23769.0,0.653304]
[1659264379613,0.0314383,23770.0,23769.0,0.653304]
[1659264379821,0.00148542,23770.0,23769.0,0.66341526]
[1659264380012,0.00148542,23770.0,23769.0,0.653304]
[1659264380441,0.0014024,23770.0,23769.0,0.653304]
[1659264381138,0.0014024,23770.0,23769.0,0.66341526]
[1659264381407,0.0014024,23770.0,23769.0,0.65375512]
[1659264381865,0.0014024,23770.0,23769.0,0.653304]
[1659264382095,0.0014024,23770.0,23769.0,0.66341526]
[1659264382332,0.0014024,23770.0,23769.0,0.65375512]
[1659264382763,0.0014024,23770.0,23769.0,0.353304]
[1659264382991,0.0014024,23770.0,23769.0,0.05]
[1659264383587,0.0014024,23770.0,23769.0,0.15]
[1659264383868,0.0014024,23770.0,23769.0,0.453304]
[1659264384087,0.0014024,23770.0,23769.0,0.753304]
[1659264384318,0.0014024,23770.0,23769.0,0.453304]
[1659264386830,0.0014024,23770.0,23769.0,0.46341526]
[1659264387148,0.0014024,23770.0,23769.0,0.753304]
[1659264387799,0.0014024,23770.0,23769.0,0.76341526]
[1659264388219,0.0014024,23770.0,23769.0,0.753304]
[1659264389503,0.0014024,23770.0,23769.0,0.75375512]
[1659264389957,0.03135528,23770.0,23769.0,0.453304]
[1659264390157,0.0014024,23770.0,23769.0,0.453304]
[1659264390622,0.0014024,23770.0,23769.0,0.75375512]
[1659264390833,0.0014024,23770.0,23769.0,0.76386638]
[1659264392419,0.0014024,23770.0,23769.0,0.753304]
[1659264392625,0.0014024,23770.0,23769.0,0.748304]
[1659264394388,0.0014024,23770.0,23769.0,0.75158131]
[1659264394595,0.0014024,23770.0,23769.0,0.748304]
[1659264395450,0.0014024,23770.0,23769.0,0.76121061]
[1659264396219,0.03135528,23770.0,23769.0,0.748304]
[1659264396834,0.0014024,23770.0,23769.0,0.748304]
[1659264398660,0.03135528,23770.0,23769.0,0.748304]
[1659264398873,0.0014024,23770.0,23769.0,0.748304]
[1659264399327,0.0931524,23770.0,23769.0,0.303304]
[1659264399549,0.0931524,23770.0,23768.0,0.1]
[1659264399769,0.12310528,23770.0,23769.0,0.303304]
[1659264400035,0.03135528,23770.0,23769.0,0.303304]
[1659264400251,0.0014024,23770.0,23769.0,0.31364568]
[1659264400504,0.0014024,23770.0,23769.0,0.303304]
[1659264400708,0.0014024,23770.0,23768.0,0.145]
[1659264400929,0.0014024,23770.0,23769.0,0.303304]
[1659264401139,0.0014024,23770.0,23769.0,0.31364568]
[1659264401392,0.0014024,23770.0,23769.0,0.303304]
[1659264402673,0.0014024,23770.0,23768.0,0.15533074]
[1659264402884,0.0014024,23770.0,23769.0,0.603304]
[1659264402885,0.03135528,23770.0,23769.0,0.603304]
[1659264403315,0.02596431,23770.0,23769.0,0.603304]
[1659264403542,0.0014024,23770.0,23768.0,0.145]
[1659264403760,0.0014024,23770.0,23769.0,0.303304]
[1659264404179,0.0014024,23770.0,23768.0,0.145]
[1659264404397,0.0014024,23770.0,23769.0,0.303304]
[1659264404833,0.0014024,23770.0,23768.0,0.145]
[1659264405077,0.0014024,23770.0,23769.0,0.303304]
[1659264405284,0.0354024,23770.0,23769.0,0.303304]
[1659264406139,0.0354024,23770.0,23768.0,0.145]
[1659264406413,0.0354024,23770.0,23769.0,0.50436526]
[1659264406623,0.0354024,23770.0,23769.0,0.80436526]
[1659264407060,0.0014024,23770.0,23769.0,0.80436526]
[1659264407274,0.0014024,23770.0,23769.0,0.79753131]
[1659264407483,0.0014024,23770.0,23769.0,0.80764257]
[1659264408177,0.0014024,23770.0,23769.0,0.794254]
[1659264408396,0.0014024,23770.0,23769.0,0.80764257]
[1659264408828,0.0014024,23770.0,23769.0,0.80364257]
[1659264409063,0.0014024,23770.0,23769.0,0.790254]
[1659264409669,0.0014024,23770.0,23769.0,0.8018605]
[1659264410610,0.0014024,23770.0,23769.0,0.9099105]
[1659264410841,0.0014024,23770.0,23769.0,1.36140131]
[1659264411544,0.0014024,23770.0,23769.0,1.95540131]
[1659264413799,0.0014024,23770.0,23769.0,1.96814738]
[1659264416878,0.0014024,23770.0,23769.0,1.9239139]
[1659264430172,0.00129995,23770.0,23769.0,1.9239139]
[1659264431355,9.95e-06,23770.0,23769.0,1.9239139]
[1659264431566,0.52407257,23776.0,23769.0,1.96814738]
[1659264431779,0.52407257,23776.0,23772.0,0.1]
[1659264432065,0.52407257,23776.0,23773.0,0.72339468]
[1659264432280,0.52407257,23776.0,23774.0,1.22078033]
[1659264432500,0.52407257,23776.0,23775.0,0.448304]
[1659264432720,0.52407257,23776.0,23775.0,1.03825167]
[1659264432930,0.52407257,23776.0,23775.0,1.08825167]
[1659264433162,0.52407257,23776.0,23775.0,1.13825167]
[1659264434732,0.52407257,23776.0,23775.0,1.545509]
[1659264434988,0.55402545,23776.0,23775.0,0.303304]
[1659264435216,0.52407257,23776.0,23775.0,0.303304]
[1659264436885,0.52407257,23776.0,23775.0,0.603304]
[1659264438172,0.52407257,23776.0,23775.0,0.61588649]
[1659264451945,0.52307257,23776.0,23775.0,0.61588649]
[1659264456975,0.55302545,23776.0,23775.0,0.61588649]
[1659264457330,0.52307257,23776.0,23775.0,0.61588649]
[1659264467559,0.52307257,23776.0,23775.0,0.66588649]
[1659264467847,0.52307257,23776.0,23775.0,0.71588649]
[1659264468058,0.52307257,23776.0,23775.0,1.00580857]
[1659264468297,0.52307257,23776.0,23775.0,0.61588649]
[1659264468973,0.52307257,23776.0,23775.0,0.66588649]
[1659264469219,0.52307257,23776.0,23775.0,0.61588649]
[1659264469690,0.52307257,23776.0,23775.0,0.71588649]
[1659264470600,0.52307257,23776.0,23775.0,0.61588649]
[1659264472364,0.52307257,23776.0,23775.0,0.71588649]
[1659264472861,0.52307257,23776.0,23775.0,0.61588649]
[1659264474014,0.52307257,23776.0,23775.0,0.66588649]
[1659264474234,0.52307257,23776.0,23775.0,0.71588649]
[1659264474444,0.52298754,23776.0,23775.0,0.61588649]
[1659264474882,0.52298754,23776.0,23775.0,0.66588649]
[1659264475082,0.52298754,23776.0,23775.0,0.71588649]
[1659264475284,0.52298754,23776.0,23775.0,0.66588649]
[1659264475825,0.52298754,23776.0,23775.0,0.71588649]
[1659264476715,0.52298754,23776.0,23775.0,0.66588649]
[1659264476944,0.52298754,23776.0,23775.0,0.61588649]
[1659264477406,0.52298754,23776.0,23775.0,0.91588649]
[1659264477610,0.52298754,23776.0,23775.0,1.01588649]
[1659264479880,0.52298754,23776.0,23775.0,1.42314382]
[1659264480324,0.52298754,23776.0,23775.0,0.72314382]
[1659264481692,0.52298754,23776.0,23775.0,1.12314382]
[1659264481988,0.52298754,23776.0,23775.0,1.42314382]
[1659264482218,0.52298754,23776.0,23775.0,1.45472382]
[1659264482484,0.20389185,23776.0,23775.0,1.5173673]
[1659264482701,0.0013238,23777.0,23775.0,1.56851994]
[1659264482918,0.0013238,23777.0,23776.0,2.0706215]
[1659264483141,0.0013238,23777.0,23776.0,2.1022015]
[1659264483363,0.3618,23786.0,23777.0,0.0012962]
[1659264483590,0.3618,23786.0,23779.0,0.730421]
[1659264483822,0.3618,23786.0,23780.0,1.31056133]
[1659264484037,0.3618,23786.0,23781.0,1.13086233]
[1659264484275,0.3618,23786.0,23782.0,0.603304]
[1659264484522,0.5432,23789.0,23783.0,0.31341526]
[1659264484767,0.40725733,23788.0,23784.0,0.10973875]
[1659264484969,0.02995288,23787.0,23784.0,0.10973875]
[1659264485611,0.40725733,23788.0,23784.0,0.10973875]
[1659264485872,0.40725733,23787.0,23784.0,0.15473875]
[1659264486100,0.43721021,23787.0,23784.0,0.10973875]
[1659264486320,0.43721021,23787.0,23784.0,0.10962959]
[1659264486321,0.69948633,23786.0,23784.0,0.10962959]
[1659264486554,0.40725733,23786.0,23784.0,0.10962959]
[1659264487003,0.292229,23785.0,23784.0,0.10962959]
[1659264487238,0.40725733,23785.0,23784.0,0.10962959]
[1659264487901,0.69948633,23785.0,23784.0,0.10962959]
[1659264488119,0.40725733,23785.0,23784.0,0.10962959]
[1659264488594,0.40725733,23785.0,23784.0,0.18762959]
[1659264489807,0.40725733,23785.0,23784.0,0.10962959]
[1659264490476,0.47825733,23785.0,23784.0,0.12962959]
[1659264491161,0.47825733,23785.0,23784.0,0.13974085]
[1659264491383,0.47825733,23785.0,23784.0,0.12962959]
[1659264491809,0.40725733,23785.0,23784.0,0.10962959]
[1659264496318,0.47825733,23785.0,23784.0,0.12962959]
[1659264497650,0.124,23785.0,23784.0,0.9513105]
[1659264497859,0.124,23785.0,23784.0,1.92592027]
[1659264498091,0.0022,23790.0,23789.0,0.145]
[1659264498287,0.0022,23790.0,23789.0,0.448304]
[1659264498521,0.0022,23790.0,23789.0,1.38897452]
[1659264499011,0.0022,23790.0,23789.0,1.54858107]
[1659264499233,0.0022,23791.0,23790.0,0.745]
[1659264499452,0.0829754,23797.0,23794.0,0.145]
[1659264499672,0.0829754,23797.0,23795.0,0.645]
[1659264499887,0.0829754,23797.0,23795.0,1.26514024]
[1659264500090,0.08277773,23797.0,23795.0,1.26514024]
[1659264500323,0.08277773,23797.0,23795.0,1.34414024]
[1659264500543,0.08277773,23797.0,23795.0,1.39414024]
[1659264500544,0.02804497,23796.0,23795.0,1.39414024]
[1659264500765,0.02804497,23796.0,23795.0,1.47569024]
[1659264502127,0.02804497,23796.0,23795.0,1.37569024]
[1659264502370,0.02804497,23796.0,23795.0,1.34414024]
[1659264502831,0.02804497,23796.0,23795.0,1.3964378]
[1659264503486,0.02804497,23796.0,23795.0,1.4464378]
[1659264503726,0.02804497,23796.0,23795.0,1.3174378]
[1659264503959,0.02804497,23796.0,23795.0,1.2674378]
[1659264504402,0.02804497,23796.0,23795.0,0.77318047]
[1659264504833,0.02804497,23796.0,23795.0,1.1804378]
[1659264505101,0.02804497,23796.0,23795.0,1.2304378]
[1659264505330,0.02804497,23796.0,23795.0,1.1804378]
[1659264505764,0.02804497,23796.0,23795.0,1.1224378]
[1659264505976,0.02804497,23796.0,23795.0,1.1724378]
[1659264506187,0.02804497,23796.0,23795.0,1.1224378]
[1659264506410,0.08277773,23797.0,23796.0,0.448304]
[1659264506411,0.0808227,23797.0,23796.0,0.448304]
[1659264506617,0.0808227,23797.0,23796.0,1.233373]
[1659264507532,0.0808227,23797.0,23796.0,1.283373]
[1659264507749,0.0758227,23797.0,23796.0,1.233373]
[1659264508377,0.0758227,23797.0,23796.0,1.337373]
[1659264508596,0.0758227,23797.0,23796.0,0.987373]
[1659264508808,0.07772313,23797.0,23796.0,0.684069]
[1659264509250,0.07772313,23797.0,23796.0,0.567327]
[1659264509694,0.07772313,23797.0,23796.0,0.513327]
[1659264510349,0.07772313,23797.0,23796.0,0.583327]
[1659264510595,0.07772313,23797.0,23796.0,0.883327]
[1659264511703,0.07772313,23797.0,23796.0,0.813327]
[1659264512373,0.07772313,23797.0,23796.0,0.883327]
[1659264513731,0.07772313,23797.0,23796.0,0.813327]
[1659264514168,0.07772313,23797.0,23796.0,0.863327]
[1659264514419,0.07772313,23797.0,23796.0,0.892327]
[1659264515589,0.07772313,23797.0,23796.0,0.813327]
[1659264516252,0.07772313,23797.0,23796.0,0.892327]
[1659264516741,0.0831141,23797.0,23796.0,0.892327]
[1659264517003,0.07772313,23797.0,23796.0,0.289023]
[1659264517142,0.07772313,23797.0,23796.0,0.59921468]
[1659264517348,0.07772313,23797.0,23796.0,0.29921468]
[1659264517698,0.07772313,23797.0,23796.0,0.210023]
[1659264517822,0.07772313,23797.0,23796.0,0.513327]
[1659264518255,0.13672313,23797.0,23796.0,0.22341157]
[1659264518486,0.13672313,23797.0,23796.0,0.52671557]
[1659264518711,0.13672313,23797.0,23796.0,0.82671557]
[1659264519856,0.07772313,23797.0,23796.0,0.52341157]
[1659264520119,0.07772313,23797.0,23796.0,0.82671557]
[1659264520529,0.07772313,23797.0,23796.0,0.90571557]
[1659264521449,0.07772313,23797.0,23796.0,0.892327]
[1659264521670,0.07772313,23797.0,23796.0,0.89560431]
[1659264521908,0.07772313,23797.0,23796.0,0.81660431]
[1659264522317,0.07772313,23797.0,23796.0,0.51330031]
[1659264522982,0.07772313,23797.0,23796.0,0.81660431]
[1659264523392,0.07772313,23797.0,23796.0,0.89560431]
[1659264524045,0.07772313,23797.0,23796.0,0.87060431]
[1659264524262,0.07772313,23797.0,23796.0,0.867327]
[1659264524394,0.07772313,23797.0,23796.0,0.946327]
[1659264524628,0.07772313,23797.0,23796.0,0.867327]
[1659264525578,0.07772313,23797.0,23796.0,0.86748284]
[1659264525816,0.10767601,23797.0,23796.0,0.788327]
[1659264526046,0.10767601,23797.0,23796.0,0.185023]
[1659264526245,0.07772313,23797.0,23796.0,0.485023]
[1659264526365,0.07772313,23797.0,23796.0,0.264023]
[1659264526588,0.07772313,23797.0,23796.0,0.564023]
[1659264526813,0.10767601,23797.0,23796.0,0.264023]
[1659264527028,0.07772313,23797.0,23796.0,0.264023]
[1659264527239,0.07772313,23797.0,23796.0,0.57413426]
[1659264527471,0.07772313,23797.0,23796.0,0.27413426]
[1659264527675,0.07772313,23797.0,23796.0,0.1952901]
[1659264527888,0.07772313,23797.0,23796.0,0.4952901]
[1659264528371,0.07772313,23797.0,23796.0,0.5712901]
[1659264528796,0.07772313,23797.0,23796.0,0.8745941]
[1659264529704,0.07772313,23797.0,23796.0,0.7985941]
[1659264530366,0.07772313,23797.0,23796.0,0.867327]
[1659264530590,0.07772313,23797.0,23796.0,0.87743826]
[1659264530810,0.07772313,23797.0,23796.0,0.867327]
[1659264531039,0.07772313,23797.0,23796.0,0.564023]
[1659264531263,0.07772313,23797.0,23796.0,0.867327]
[1659264531492,0.07772313,23797.0,23796.0,0.564023]
[1659264531727,0.07772313,23797.0,23796.0,0.49513426]
[1659264532211,0.07772313,23797.0,23796.0,0.79843826]
[1659264532442,0.07772313,23797.0,23796.0,0.867327]
[1659264532675,0.07772313,23797.0,23796.0,0.57413426]
[1659264532890,0.07772313,23797.0,23796.0,0.564023]
[1659264533576,0.07772313,23797.0,23796.0,0.57413426]
[1659264533794,0.07772313,23797.0,23796.0,0.564023]
[1659264534014,0.07772313,23797.0,23796.0,0.56417884]
[1659264534464,0.07772313,23797.0,23796.0,0.86748284]
[1659264534770,0.07772313,23797.0,23796.0,0.8775941]
[1659264535372,0.07772313,23797.0,23796.0,0.564023]
[1659264535820,0.07772313,23797.0,23796.0,0.4952901]
[1659264536315,0.07772313,23797.0,23796.0,0.8745941]
[1659264537707,0.07772313,23797.0,23796.0,0.4952901]
[1659264537938,0.07772313,23797.0,23796.0,0.49513426]
[1659264538396,0.07772313,23797.0,23796.0,0.87443826]
[1659264538842,0.07772313,23797.0,23796.0,0.864327]
[1659264539068,0.07772313,23797.0,23796.0,0.57113426]
[1659264539742,0.07772313,23797.0,23796.0,0.79843826]
[1659264540469,0.07772313,23797.0,23796.0,0.87743826]
[1659264541158,0.07772313,23797.0,23796.0,0.87912237]
[1659264541425,0.07772313,23797.0,23796.0,0.57581837]
[1659264541646,0.07772313,23797.0,23796.0,0.80012237]
[1659264542309,0.07772313,23797.0,23796.0,0.87912237]
[1659264542547,0.10767601,23797.0,23796.0,0.564023]
[1659264542747,0.07772313,23797.0,23796.0,0.564023]
[1659264543702,0.07772313,23797.0,23796.0,0.485023]
[1659264543868,0.07772313,23797.0,23796.0,0.49843826]
[1659264544072,0.07772313,23797.0,23796.0,0.79843826]
[1659264544503,0.07772313,23797.0,23796.0,0.867327]
[1659264544700,0.07772313,23797.0,23796.0,0.264023]
[1659264545782,0.78498046,23797.0,23795.0,0.11187647]
[1659264545995,0.292229,23796.0,23795.0,0.11187647]
[1659264546202,0.69948633,23796.0,23795.0,0.11187647]
[1659264546409,1.7182362,23796.0,23795.0,0.11187647]
[1659264547580,0.05,23792.0,23789.0,0.420202]
[1659264547795,0.05,23792.0,23777.0,3.75444086]
[1659264547796,1.95725733,23791.0,23784.0,0.210142]
[1659264548010,0.40725733,23790.0,23782.0,0.00329515]
[1659264548229,0.40725733,23790.0,23779.0,0.07978246]
[1659264548230,0.342229,23789.0,23779.0,0.07978246]
[1659264548463,0.40725733,23788.0,23777.0,0.3]
[1659264548690,0.96125733,23788.0,23777.0,0.81234933]
[1659264548945,0.69948633,23787.0,23777.0,0.81234933]
[1659264549147,0.40725733,23786.0,23779.0,0.00018678]
[1659264549374,0.292229,23785.0,23779.0,0.00018678]
[1659264549600,0.69948633,23784.0,23779.0,0.00018678]
[1659264549815,0.292229,23783.0,23777.0,0.81234933]
[1659264550069,0.40725733,23784.0,23777.0,0.81234933]
[1659264550298,0.40725733,23784.0,23777.0,0.89134933]
[1659264550950,0.40725733,23787.0,23779.0,0.210154]
[1659264551170,0.2878,23790.0,23780.0,0.70725733]
[1659264551171,0.40725733,23789.0,23780.0,0.70725733]
[1659264551415,0.40725733,23789.0,23782.0,0.735354]
[1659264551632,0.40725733,23789.0,23783.0,0.3]
[1659264552060,0.40725733,23789.0,23783.0,0.36264348]
[1659264552284,0.47825733,23789.0,23784.0,0.31264348]
[1659264552495,0.47825733,23789.0,23784.0,0.52275248]
[1659264552742,0.47825733,23789.0,23785.0,0.01264348]
[1659264552743,0.071,23789.0,23785.0,0.01264348]
[1659264552990,0.02456191,23788.0,23785.0,0.11769848]
[1659264553205,0.292229,23788.0,23785.0,0.11769848]
[1659264553425,0.071,23789.0,23785.0,0.11769848]
[1659264553646,0.5375,23793.0,23785.0,0.11769848]
[1659264553853,0.69948633,23792.0,23785.0,0.11769848]
[1659264554080,0.69948633,23791.0,23785.0,0.11769848]
[1659264554316,0.40725733,23791.0,23785.0,0.105055]
[1659264554962,1.02375733,23793.0,23786.0,0.40725733]
[1659264555166,0.292229,23792.0,23787.0,0.3]
[1659264555470,0.69948633,23791.0,23785.0,0.105055]
[1659264555678,0.40725733,23790.0,23781.0,1.271262]
[1659264555884,0.40725733,23790.0,23782.0,0.70725733]
[1659264556097,0.40725733,23790.0,23782.0,0.3]
[1659264556328,0.292229,23789.0,23782.0,0.3]
[1659264556498,0.40725733,23788.0,23782.0,0.3]
[1659264556775,0.42025733,23790.0,23782.0,1.02244933]